[Event "*** Titled Tuesday Blitz"]
[Site "Chess.com"]
[Date "2019.08.06"]
[Round "4"]
[White "Padenie_Zvezd"]
[Black "12teen"]
[Result "1-0"]
[WhiteElo "2814"]
[BlackElo "2656"]
[TimeControl "180+2"]
[EndTime "13:50:24 PDT"]
[Termination "Padenie_Zvezd won by resignation"]

1. d4 {[%clk 0:02:59.5]} 1... b5 {[%clk 0:02:56.8]} 2. e4 {[%clk 0:02:59.4]}
2... a6 {[%clk 0:02:58.4]} 3. Nf3 {[%clk 0:02:53.5]} 3... Bb7 {[%clk 0:02:59.9]}
4. Bd3 {[%clk 0:02:54.8]} 4... e6 {[%clk 0:03:01.1]} 5. O-O {[%clk 0:02:54.3]}
5... Nf6 {[%clk 0:03:02.6]} 6. Nbd2 {[%clk 0:02:49.2]} 6... d5 {[%clk
0:03:03.2]} 7. Qe2 {[%clk 0:02:41.6]} 7... c5 {[%clk 0:03:01.7]} 8. dxc5 {[%clk
0:02:38.5]} 8... Bxc5 {[%clk 0:03:01.4]} 9. e5 {[%clk 0:02:39.3]} 9... Nfd7
{[%clk 0:03:01.2]} 10. Nb3 {[%clk 0:02:40]} 10... Be7 {[%clk 0:02:59.7]} 11.
Nbd4 {[%clk 0:02:36.3]} 11... Qc7 {[%clk 0:02:56.9]} 12. c3 {[%clk 0:02:29.8]}
12... Nc6 {[%clk 0:02:56.4]} 13. Bf4 {[%clk 0:02:27.1]} 13... h6 {[%clk
0:02:47.2]} 14. Bg3 {[%clk 0:02:14.9]} 14... Nb6 {[%clk 0:01:57]} 15. Nxc6
{[%clk 0:02:02.3]} 15... Bxc6 {[%clk 0:01:54.2]} 16. Nd4 {[%clk 0:02:04.2]}
16... Bd7 {[%clk 0:01:50.4]} 17. Nf5 {[%clk 0:01:33]} 17... Bf8 {[%clk
0:01:17.3]} 18. Nd6+ {[%clk 0:01:04.2]} 18... Bxd6 {[%clk 0:01:17.8]} 19. exd6
{[%clk 0:01:06.1]} 19... Qc5 {[%clk 0:01:19.2]} 20. Qg4 {[%clk 0:00:49.8]} 20...
O-O {[%clk 0:01:09.8]} 21. Be5 {[%clk 0:00:50.2]} 21... f6 {[%clk 0:01:03.7]}
22. Bd4 {[%clk 0:00:51.2]} 22... Qxd6 {[%clk 0:00:57.3]} 23. Qg6 {[%clk
0:00:52.2]} 23... e5 {[%clk 0:00:41.4]} 24. Qh7+ {[%clk 0:00:53]} 24... Kf7
{[%clk 0:00:42.3]} 25. Bg6+ {[%clk 0:00:54.9]} 25... Ke6 {[%clk 0:00:38.7]} 26.
Qxg7 {[%clk 0:00:56.8]} 26... Nc4 {[%clk 0:00:26.9]} 27. f4 {[%clk 0:00:45.8]}
27... Qc6 {[%clk 0:00:09.6]} 28. fxe5 {[%clk 0:00:35.6]} 28... f5 {[%clk
0:00:08.2]} 29. Bxf5+ {[%clk 0:00:22.7]} 29... Rxf5 {[%clk 0:00:08.4]} 30. Rxf5
{[%clk 0:00:24.6]} 30... Kxf5 {[%clk 0:00:08.5]} 31. Rf1+ {[%clk 0:00:24.5]}
31... Ke4 {[%clk 0:00:09]} 32. Qh7+ {[%clk 0:00:23.9]} 1-0

[Event "*** Titled Tuesday Blitz"]
[Site "Chess.com"]
[Date "2019.08.06"]
[Round "4"]
[White "kesarev"]
[Black "SaraciNderim"]
[Result "0-1"]
[WhiteElo "2478"]
[BlackElo "2821"]
[TimeControl "180+2"]
[EndTime "13:50:30 PDT"]
[Termination "SaraciNderim won by resignation"]

1. Nf3 {[%clk 0:03:01.9]} 1... d5 {[%clk 0:03:00.6]} 2. c4 {[%clk 0:03:02.6]}
2... c6 {[%clk 0:03:01.4]} 3. d4 {[%clk 0:03:02.5]} 3... Nf6 {[%clk 0:03:01.9]}
4. Nc3 {[%clk 0:03:04.1]} 4... dxc4 {[%clk 0:03:02.6]} 5. a4 {[%clk 0:03:04.7]}
5... Bf5 {[%clk 0:03:01.7]} 6. Nh4 {[%clk 0:03:05.7]} 6... Be6 {[%clk
0:02:52.6]} 7. e4 {[%clk 0:03:00.5]} 7... a5 {[%clk 0:02:53]} 8. f4 {[%clk
0:02:40.3]} 8... Bg4 {[%clk 0:02:52.6]} 9. Qd2 {[%clk 0:02:37.8]} 9... e6 {[%clk
0:02:42.4]} 10. Nf3 {[%clk 0:02:34.4]} 10... Bb4 {[%clk 0:02:41.3]} 11. Qe3
{[%clk 0:02:28]} 11... Bxf3 {[%clk 0:02:41.2]} 12. gxf3 {[%clk 0:02:28.6]} 12...
b5 {[%clk 0:02:40.4]} 13. Bd2 {[%clk 0:02:25.4]} 13... Nbd7 {[%clk 0:02:32.4]}
14. Rg1 {[%clk 0:01:47.7]} 14... O-O {[%clk 0:02:26.4]} 15. Bh3 {[%clk
0:01:45.1]} 15... Nb6 {[%clk 0:02:18.3]} 16. axb5 {[%clk 0:01:43.9]} 16... cxb5
{[%clk 0:02:03.9]} 17. Nxb5 {[%clk 0:01:02.3]} 17... Nfd5 {[%clk 0:01:00.6]} 18.
exd5 {[%clk 0:00:57]} 18... Qh4+ {[%clk 0:01:01.5]} 19. Rg3 {[%clk 0:00:57.7]}
19... Nxd5 {[%clk 0:00:57.2]} 20. Qe5 {[%clk 0:00:50.9]} 20... g6 {[%clk
0:00:48.7]} 21. Nc3 {[%clk 0:00:47.4]} 21... Be7 {[%clk 0:00:41.9]} 22. Ne4
{[%clk 0:00:33.2]} 22... Nb4 {[%clk 0:00:26.5]} 23. Kf1 {[%clk 0:00:17.5]} 23...
Nd3 {[%clk 0:00:22.3]} 24. Qb5 {[%clk 0:00:17.7]} 24... Nxf4 {[%clk 0:00:20.1]}
25. Bxf4 {[%clk 0:00:18.4]} 25... Qxf4 {[%clk 0:00:22]} 26. Qxc4 {[%clk
0:00:20]} 26... Rab8 {[%clk 0:00:21.4]} 27. Rb1 {[%clk 0:00:18.1]} 27... Rfc8
{[%clk 0:00:21.7]} 28. Qd3 {[%clk 0:00:18.7]} 28... Rc1+ {[%clk 0:00:21.9]} 29.
Rxc1 {[%clk 0:00:19.1]} 29... Qxc1+ {[%clk 0:00:22.3]} 30. Kf2 {[%clk
0:00:16.7]} 30... Rxb2+ {[%clk 0:00:20.6]} 31. Qe2 {[%clk 0:00:16.4]} 31...
Rxe2+ {[%clk 0:00:18.4]} 32. Kxe2 {[%clk 0:00:18.3]} 32... a4 {[%clk 0:00:19.6]}
0-1

[Event "*** Titled Tuesday Blitz"]
[Site "Chess.com"]
[Date "2019.08.06"]
[Round "4"]
[White "ama18"]
[Black "NemtsevIgor"]
[Result "1-0"]
[WhiteElo "2449"]
[BlackElo "2321"]
[TimeControl "180+2"]
[EndTime "13:50:32 PDT"]
[Termination "ama18 won by checkmate"]

1. d4 {[%clk 0:03:01.9]} 1... c6 {[%clk 0:02:59]} 2. c4 {[%clk 0:03:02.3]} 2...
d6 {[%clk 0:03:00.3]} 3. Nf3 {[%clk 0:03:01.5]} 3... h6 {[%clk 0:03:01.4]} 4.
Nc3 {[%clk 0:03:00.1]} 4... g5 {[%clk 0:03:02]} 5. h3 {[%clk 0:02:52.5]} 5...
Bg7 {[%clk 0:03:02.1]} 6. e4 {[%clk 0:02:53.3]} 6... Nd7 {[%clk 0:03:02.2]} 7.
Be3 {[%clk 0:02:50.2]} 7... e6 {[%clk 0:02:49.4]} 8. Qd2 {[%clk 0:02:49.7]} 8...
Ne7 {[%clk 0:02:49.7]} 9. O-O-O {[%clk 0:02:36.3]} 9... f5 {[%clk 0:02:49.1]}
10. exf5 {[%clk 0:02:32.9]} 10... exf5 {[%clk 0:02:50.3]} 11. g3 {[%clk
0:02:29.5]} 11... O-O {[%clk 0:02:43.4]} 12. Bd3 {[%clk 0:02:15.2]} 12... a6
{[%clk 0:02:31.4]} 13. c5 {[%clk 0:02:08.3]} 13... dxc5 {[%clk 0:02:23.9]} 14.
dxc5 {[%clk 0:02:10.2]} 14... Qa5 {[%clk 0:02:23.7]} 15. Bc4+ {[%clk 0:02:00.9]}
15... Kh8 {[%clk 0:02:22.5]} 16. Bd4 {[%clk 0:01:54.2]} 16... Qb4 {[%clk
0:01:49.3]} 17. Bxg7+ {[%clk 0:01:48.9]} 17... Kxg7 {[%clk 0:01:49.9]} 18. Qd4+
{[%clk 0:01:50.4]} 18... Nf6 {[%clk 0:01:49.6]} 19. Rhe1 {[%clk 0:01:46]} 19...
Ng6 {[%clk 0:01:35.1]} 20. a3 {[%clk 0:01:37]} 20... Qa5 {[%clk 0:01:34.6]} 21.
Qd6 {[%clk 0:01:34.4]} 21... b5 {[%clk 0:01:17]} 22. Re7+ {[%clk 0:01:24.4]}
22... Kh8 {[%clk 0:01:12.6]} 23. Ne5 {[%clk 0:01:05.7]} 23... Nxe5 {[%clk
0:01:07.9]} 24. Rxe5 {[%clk 0:01:00.8]} 24... Bd7 {[%clk 0:01:04.5]} 25. Ba2
{[%clk 0:00:22.1]} 25... b4 {[%clk 0:01:05]} 26. axb4 {[%clk 0:00:21]} 26...
Qxb4 {[%clk 0:01:06.2]} 27. Re7 {[%clk 0:00:15.5]} 27... Rab8 {[%clk 0:01:02.8]}
28. Rd2 {[%clk 0:00:15.6]} 28... Qb7 {[%clk 0:00:19.9]} 29. Qe5 {[%clk
0:00:14.8]} 29... Qc8 {[%clk 0:00:18.9]} 30. Rdxd7 {[%clk 0:00:14.5]} 30... Rb4
{[%clk 0:00:12.2]} 31. Rh7# {[%clk 0:00:13.8]} 1-0

[Event "*** Titled Tuesday Blitz"]
[Site "Chess.com"]
[Date "2019.08.06"]
[Round "4"]
[White "GeorgeTen"]
[Black "Nancy11111"]
[Result "0-1"]
[WhiteElo "2244"]
[BlackElo "2318"]
[TimeControl "180+2"]
[EndTime "13:50:32 PDT"]
[Termination "Nancy11111 won by resignation"]

1. d4 {[%clk 0:03:01.9]} 1... f5 {[%clk 0:02:58.3]} 2. Bg5 {[%clk 0:03:01.6]}
2... d5 {[%clk 0:02:54.9]} 3. c4 {[%clk 0:02:56.6]} 3... c6 {[%clk 0:02:53.7]}
4. Nc3 {[%clk 0:02:56]} 4... Nf6 {[%clk 0:02:51]} 5. Bxf6 {[%clk 0:02:40.6]}
5... exf6 {[%clk 0:02:52.9]} 6. e3 {[%clk 0:02:41.9]} 6... Be6 {[%clk
0:02:50.4]} 7. Bd3 {[%clk 0:02:43]} 7... dxc4 {[%clk 0:02:49.4]} 8. Bc2 {[%clk
0:02:41.4]} 8... Bd6 {[%clk 0:02:48.6]} 9. Qf3 {[%clk 0:02:42.1]} 9... g6 {[%clk
0:02:48.2]} 10. h4 {[%clk 0:02:42.9]} 10... Qd7 {[%clk 0:02:33.1]} 11. h5 {[%clk
0:02:39]} 11... g5 {[%clk 0:02:34]} 12. g4 {[%clk 0:02:19.5]} 12... f4 {[%clk
0:02:29.9]} 13. exf4 {[%clk 0:02:11.1]} 13... Bxf4 {[%clk 0:02:26.7]} 14. Nge2
{[%clk 0:02:03.8]} 14... Bxg4 {[%clk 0:02:24.8]} 15. Qe4+ {[%clk 0:02:05.2]}
15... Qe6 {[%clk 0:02:23.7]} 16. Nxf4 {[%clk 0:02:04.8]} 16... gxf4 {[%clk
0:02:19.1]} 17. Kd2 {[%clk 0:01:32.6]} 17... Qxe4 {[%clk 0:02:09.5]} 18. Nxe4
{[%clk 0:01:32.1]} 18... Nd7 {[%clk 0:02:09.8]} 19. Nd6+ {[%clk 0:01:29.4]}
19... Ke7 {[%clk 0:02:04.3]} 20. Nxc4 {[%clk 0:01:24.5]} 20... Rad8 {[%clk
0:01:53.9]} 21. Rae1+ {[%clk 0:01:24]} 21... Kf8 {[%clk 0:01:52.5]} 22. h6
{[%clk 0:01:18.8]} 22... Nb6 {[%clk 0:01:52.3]} 23. Nxb6 {[%clk 0:01:18.3]}
23... axb6 {[%clk 0:01:54.2]} 24. Kc3 {[%clk 0:01:18.5]} 24... Kf7 {[%clk
0:01:54.5]} 25. Rhg1 {[%clk 0:01:15.3]} 25... f5 {[%clk 0:01:43.3]} 26. f3
{[%clk 0:01:10.3]} 26... Bxf3 {[%clk 0:01:37.1]} 27. Bxf5 {[%clk 0:01:06.8]}
27... Bd5 {[%clk 0:01:15.3]} 28. Rg7+ {[%clk 0:01:02.8]} 28... Kf6 {[%clk
0:01:15.9]} 29. Bxh7 {[%clk 0:01:02.2]} 29... f3 {[%clk 0:01:12.8]} 30. Re5
{[%clk 0:00:53.2]} 30... Rxh7 {[%clk 0:01:02.4]} 31. Rgg5 {[%clk 0:00:51.3]}
31... Rxh6 {[%clk 0:00:55]} 32. Ref5+ {[%clk 0:00:51.1]} 32... Ke6 {[%clk
0:00:51.8]} 33. Re5+ {[%clk 0:00:53]} 33... Kd6 {[%clk 0:00:52.7]} 34. Rgf5
{[%clk 0:00:46.3]} 34... b5 {[%clk 0:00:46]} 35. Kb4 {[%clk 0:00:41.9]} 35...
Rh2 {[%clk 0:00:41.8]} 36. b3 {[%clk 0:00:42.1]} 36... Rxa2 {[%clk 0:00:39.1]}
37. Rf6+ {[%clk 0:00:43.4]} 37... Kc7 {[%clk 0:00:39.7]} 38. Kc5 {[%clk
0:00:37.5]} 38... b6+ {[%clk 0:00:35.4]} 39. Kb4 {[%clk 0:00:39.4]} 39... Rb2
{[%clk 0:00:34.3]} 40. Re7+ {[%clk 0:00:37.9]} 40... Rd7 {[%clk 0:00:34.5]} 0-1

[Event "*** Titled Tuesday Blitz"]
[Site "Chess.com"]
[Date "2019.08.06"]
[Round "4"]
[White "amatatanav"]
[Black "IakovUlivar"]
[Result "0-1"]
[WhiteElo "2495"]
[BlackElo "2518"]
[TimeControl "180+2"]
[EndTime "13:50:33 PDT"]
[Termination "IakovUlivar won on time"]

1. e4 {[%clk 0:03:01.9]} 1... e5 {[%clk 0:03:00.2]} 2. Bc4 {[%clk 0:03:02.3]}
2... Nf6 {[%clk 0:02:51.8]} 3. d3 {[%clk 0:03:00.4]} 3... Nc6 {[%clk 0:02:49.9]}
4. Nc3 {[%clk 0:03:01]} 4... Na5 {[%clk 0:02:50.3]} 5. Bb3 {[%clk 0:02:59.9]}
5... Nxb3 {[%clk 0:02:46.5]} 6. axb3 {[%clk 0:03:01.8]} 6... Bb4 {[%clk
0:02:42.3]} 7. Ne2 {[%clk 0:03:02]} 7... d6 {[%clk 0:02:41.6]} 8. O-O {[%clk
0:02:19.8]} 8... h6 {[%clk 0:02:41.8]} 9. f4 {[%clk 0:01:48.2]} 9... Bg4 {[%clk
0:02:27.7]} 10. Qe1 {[%clk 0:01:37.8]} 10... Bxe2 {[%clk 0:02:17.2]} 11. Qxe2
{[%clk 0:01:39.7]} 11... Qd7 {[%clk 0:02:13.9]} 12. Be3 {[%clk 0:01:25.8]} 12...
a6 {[%clk 0:02:07.7]} 13. Kh1 {[%clk 0:01:22.3]} 13... Qc6 {[%clk 0:01:58.6]}
14. Bd2 {[%clk 0:00:47.6]} 14... Bc5 {[%clk 0:01:28.7]} 15. Ra4 {[%clk
0:00:38.1]} 15... Bd4 {[%clk 0:01:13.7]} 16. Be3 {[%clk 0:00:20.9]} 16... Bxe3
{[%clk 0:01:02.8]} 17. Qxe3 {[%clk 0:00:22.6]} 17... Qd7 {[%clk 0:01:00.1]} 18.
fxe5 {[%clk 0:00:20]} 18... dxe5 {[%clk 0:01:00.9]} 19. Qg3 {[%clk 0:00:21.1]}
19... O-O-O {[%clk 0:00:14.5]} 20. Qxg7 {[%clk 0:00:21.9]} 20... Nh5 {[%clk
0:00:11.9]} 21. Qxf7 {[%clk 0:00:21.5]} 21... Nf4 {[%clk 0:00:12.6]} 22. Qxd7+
{[%clk 0:00:21.3]} 22... Rxd7 {[%clk 0:00:14.5]} 23. g3 {[%clk 0:00:21.2]} 23...
Ne6 {[%clk 0:00:15.8]} 24. Ne2 {[%clk 0:00:15.4]} 24... h5 {[%clk 0:00:16.9]}
25. Rf5 {[%clk 0:00:13.1]} 25... h4 {[%clk 0:00:17.9]} 26. Rxe5 {[%clk
0:00:13.6]} 26... hxg3 {[%clk 0:00:09.1]} 27. Nxg3 {[%clk 0:00:14.5]} 27... Nf4
{[%clk 0:00:10.2]} 0-1

[Event "*** Titled Tuesday Blitz"]
[Site "Chess.com"]
[Date "2019.08.06"]
[Round "4"]
[White "Komissarov_alex"]
[Black "aquaticpineapples"]
[Result "0-1"]
[WhiteElo "2180"]
[BlackElo "2149"]
[TimeControl "180+2"]
[EndTime "13:50:37 PDT"]
[Termination "aquaticpineapples won on time"]

1. e4 {[%clk 0:03:01.3]} 1... e6 {[%clk 0:02:59]} 2. d4 {[%clk 0:03:00.5]} 2...
d5 {[%clk 0:03:00.4]} 3. Nc3 {[%clk 0:03:00.4]} 3... Bb4 {[%clk 0:03:00.9]} 4.
Ne2 {[%clk 0:02:58.1]} 4... Nc6 {[%clk 0:02:59.8]} 5. a3 {[%clk 0:02:52.2]} 5...
Bxc3+ {[%clk 0:03:00.6]} 6. Nxc3 {[%clk 0:02:51.4]} 6... dxe4 {[%clk 0:03:01.4]}
7. d5 {[%clk 0:02:51.4]} 7... exd5 {[%clk 0:02:57.9]} 8. Qxd5 {[%clk 0:02:48.2]}
8... Qxd5 {[%clk 0:02:50.2]} 9. Nxd5 {[%clk 0:02:46.7]} 9... Nd4 {[%clk
0:02:50.9]} 10. Nxc7+ {[%clk 0:02:25.1]} 10... Kd8 {[%clk 0:02:51.3]} 11. Nxa8
{[%clk 0:02:24.4]} 11... Nxc2+ {[%clk 0:02:52.2]} 12. Kd1 {[%clk 0:02:20.2]}
12... Nxa1 {[%clk 0:02:52.9]} 13. Bc4 {[%clk 0:02:18.9]} 13... Be6 {[%clk
0:02:41]} 14. Bxe6 {[%clk 0:01:59]} 14... fxe6 {[%clk 0:02:42.9]} 15. Bf4 {[%clk
0:01:57.5]} 15... Nb3 {[%clk 0:02:42.1]} 16. Nc7 {[%clk 0:01:51.3]} 16... Ke7
{[%clk 0:02:32.7]} 17. Kc2 {[%clk 0:01:39.3]} 17... Nd4+ {[%clk 0:02:22.7]} 18.
Kb1 {[%clk 0:01:39.2]} 18... Nf6 {[%clk 0:02:14.8]} 19. Rd1 {[%clk 0:01:37.5]}
19... Nc6 {[%clk 0:02:02.1]} 20. Rd6 {[%clk 0:01:16.6]} 20... e5 {[%clk
0:01:50.5]} 21. Re6+ {[%clk 0:01:08.9]} 21... Kd7 {[%clk 0:01:51.5]} 22. Rxe5
{[%clk 0:01:09]} 22... Nxe5 {[%clk 0:01:47.8]} 23. Bxe5 {[%clk 0:01:08.6]} 23...
Ng4 {[%clk 0:01:39.1]} 24. Bg3 {[%clk 0:01:02.8]} 24... Nxf2 {[%clk 0:01:29.9]}
25. Nb5 {[%clk 0:00:50.2]} 25... Nd3 {[%clk 0:01:22.8]} 26. Nxa7 {[%clk
0:00:48.5]} 26... Rf8 {[%clk 0:01:03.7]} 27. Nb5 {[%clk 0:00:39.6]} 27... Rf1+
{[%clk 0:00:43.8]} 28. Kc2 {[%clk 0:00:34]} 28... Ne1+ {[%clk 0:00:44.7]} 29.
Kc3 {[%clk 0:00:31.1]} 29... Nxg2 {[%clk 0:00:41.8]} 30. Nd6 {[%clk 0:00:25.3]}
30... e3 {[%clk 0:00:37.4]} 31. Nxb7 {[%clk 0:00:25.4]} 31... e2 {[%clk
0:00:35.1]} 32. Nc5+ {[%clk 0:00:25.1]} 32... Kc6 {[%clk 0:00:35.9]} 0-1

[Event "*** Titled Tuesday Blitz"]
[Site "Chess.com"]
[Date "2019.08.06"]
[Round "4"]
[White "Giraffe_Chess"]
[Black "JSMastropiero"]
[Result "1-0"]
[WhiteElo "2394"]
[BlackElo "2319"]
[TimeControl "180+2"]
[EndTime "13:50:40 PDT"]
[Termination "Giraffe_Chess won by resignation"]

1. d4 {[%clk 0:03:01.9]} 1... e6 {[%clk 0:02:57.3]} 2. c4 {[%clk 0:03:02.3]}
2... f5 {[%clk 0:02:53.9]} 3. Nc3 {[%clk 0:03:01.3]} 3... Nf6 {[%clk 0:02:54.3]}
4. e3 {[%clk 0:03:02.1]} 4... Bb4 {[%clk 0:02:51.3]} 5. Bd3 {[%clk 0:03:02.8]}
5... b6 {[%clk 0:02:50.7]} 6. Ne2 {[%clk 0:03:03.5]} 6... Bb7 {[%clk 0:02:50.7]}
7. O-O {[%clk 0:03:04]} 7... O-O {[%clk 0:02:49.9]} 8. f3 {[%clk 0:03:05.2]}
8... c5 {[%clk 0:02:33.9]} 9. a3 {[%clk 0:02:58.1]} 9... cxd4 {[%clk 0:02:25.9]}
10. exd4 {[%clk 0:02:49.3]} 10... Be7 {[%clk 0:02:25.7]} 11. Re1 {[%clk
0:02:43.8]} 11... g6 {[%clk 0:02:12.5]} 12. Be3 {[%clk 0:02:34.8]} 12... Nc6
{[%clk 0:02:10.5]} 13. Bf2 {[%clk 0:02:27.8]} 13... Rc8 {[%clk 0:02:10.5]} 14.
b4 {[%clk 0:02:27.3]} 14... d6 {[%clk 0:02:06.5]} 15. Qb3 {[%clk 0:02:27.4]}
15... Kh8 {[%clk 0:02:03.5]} 16. Nf4 {[%clk 0:02:26.3]} 16... e5 {[%clk
0:01:46.1]} 17. Ne6 {[%clk 0:02:25.1]} 17... Qd7 {[%clk 0:01:44.6]} 18. Nxf8
{[%clk 0:02:24.1]} 18... Rxf8 {[%clk 0:01:46.5]} 19. d5 {[%clk 0:02:09.7]} 19...
Nd8 {[%clk 0:01:44.1]} 20. a4 {[%clk 0:02:04.3]} 20... Nf7 {[%clk 0:01:36.2]}
21. a5 {[%clk 0:02:03.4]} 21... e4 {[%clk 0:01:26]} 22. fxe4 {[%clk 0:02:01.1]}
22... Ne5 {[%clk 0:01:27.1]} 23. Bf1 {[%clk 0:01:46.7]} 23... f4 {[%clk
0:01:26.2]} 24. axb6 {[%clk 0:01:43.8]} 24... axb6 {[%clk 0:01:28.1]} 25. Ra7
{[%clk 0:01:38.4]} 25... f3 {[%clk 0:01:24.7]} 26. c5 {[%clk 0:01:33.7]} 26...
fxg2 {[%clk 0:01:03.9]} 27. Bxg2 {[%clk 0:01:32.1]} 27... Qg4 {[%clk 0:01:04.5]}
28. Nd1 {[%clk 0:01:15.6]} 28... Nh5 {[%clk 0:00:53.1]} 29. Rxb7 {[%clk
0:00:41.2]} 29... Nf3+ {[%clk 0:00:44.5]} 30. Kh1 {[%clk 0:00:39.7]} 30... Nxe1
{[%clk 0:00:30.1]} 31. Bxe1 {[%clk 0:00:24.9]} 31... Qe2 {[%clk 0:00:30.7]} 32.
Qb2+ {[%clk 0:00:21.4]} 32... Qxb2 {[%clk 0:00:29.1]} 33. Nxb2 {[%clk
0:00:23.3]} 33... Bf6 {[%clk 0:00:26]} 34. c6 {[%clk 0:00:21.5]} 34... Bxb2
{[%clk 0:00:25.4]} 35. c7 {[%clk 0:00:22.9]} 35... Kg7 {[%clk 0:00:11.4]} 36.
c8=Q+ {[%clk 0:00:23.5]} 1-0

[Event "*** Titled Tuesday Blitz"]
[Site "Chess.com"]
[Date "2019.08.06"]
[Round "4"]
[White "Nathan_Filgueiras"]
[Black "ahachess"]
[Result "1-0"]
[WhiteElo "2216"]
[BlackElo "2327"]
[TimeControl "180+2"]
[EndTime "13:50:46 PDT"]
[Termination "Nathan_Filgueiras won by resignation"]

1. e4 {[%clk 0:03:01.9]} 1... c5 {[%clk 0:02:58.9]} 2. Nf3 {[%clk 0:03:01.7]}
2... d6 {[%clk 0:02:59.6]} 3. d4 {[%clk 0:03:02.4]} 3... cxd4 {[%clk 0:03:00.6]}
4. Nxd4 {[%clk 0:03:04.3]} 4... Nf6 {[%clk 0:03:01.8]} 5. Nc3 {[%clk 0:03:04.4]}
5... g6 {[%clk 0:03:02.8]} 6. Be3 {[%clk 0:03:04.5]} 6... Bg7 {[%clk 0:03:03.9]}
7. f3 {[%clk 0:03:05.7]} 7... O-O {[%clk 0:03:04.9]} 8. Qd2 {[%clk 0:03:07.3]}
8... Nc6 {[%clk 0:03:06.1]} 9. O-O-O {[%clk 0:03:08.8]} 9... Bd7 {[%clk
0:03:07.2]} 10. Kb1 {[%clk 0:03:05.4]} 10... Ne5 {[%clk 0:03:05.7]} 11. h4
{[%clk 0:03:05]} 11... h5 {[%clk 0:03:03.7]} 12. Bh6 {[%clk 0:03:00]} 12... a6
{[%clk 0:02:52.1]} 13. Bxg7 {[%clk 0:02:58.2]} 13... Kxg7 {[%clk 0:02:52.8]} 14.
Be2 {[%clk 0:02:43.7]} 14... b5 {[%clk 0:02:52.1]} 15. g4 {[%clk 0:02:35.2]}
15... b4 {[%clk 0:01:51.6]} 16. Nd5 {[%clk 0:02:24]} 16... Nxd5 {[%clk
0:01:51.8]} 17. exd5 {[%clk 0:02:24.7]} 17... hxg4 {[%clk 0:01:39.8]} 18. h5
{[%clk 0:01:43.4]} 18... Rh8 {[%clk 0:01:36.2]} 19. hxg6 {[%clk 0:01:32.3]}
19... fxg6 {[%clk 0:01:31.4]} 20. fxg4 {[%clk 0:01:20.5]} 20... Qb6 {[%clk
0:01:10.9]} 21. Qg5 {[%clk 0:01:01.4]} 21... Rxh1 {[%clk 0:00:17.2]} 22. Qxe7+
{[%clk 0:01:01]} 22... Nf7 {[%clk 0:00:18]} 23. Rxh1 {[%clk 0:00:45.2]} 23...
Qxd4 {[%clk 0:00:18.3]} 24. Qxd7 {[%clk 0:00:45.9]} 24... Qe5 {[%clk 0:00:16.9]}
25. Rf1 {[%clk 0:00:34.6]} 25... Rf8 {[%clk 0:00:16.1]} 26. Bd3 {[%clk
0:00:30.5]} 26... Qxd5 {[%clk 0:00:14.5]} 27. Qe7 {[%clk 0:00:31.6]} 27... Qe5
{[%clk 0:00:13.5]} 28. Qb7 {[%clk 0:00:26]} 28... a5 {[%clk 0:00:11.1]} 29. b3
{[%clk 0:00:21.8]} 29... d5 {[%clk 0:00:09.6]} 30. Qc6 {[%clk 0:00:21]} 30...
Qd6 {[%clk 0:00:08.7]} 31. Rxf7+ {[%clk 0:00:21]} 1-0

[Event "*** Titled Tuesday Blitz"]
[Site "Chess.com"]
[Date "2019.08.06"]
[Round "4"]
[White "Korchmar_Vasiliy"]
[Black "Tjktiger"]
[Result "1-0"]
[WhiteElo "2669"]
[BlackElo "2816"]
[TimeControl "180+2"]
[EndTime "13:50:47 PDT"]
[Termination "Korchmar_Vasiliy won on time"]

1. d4 {[%clk 0:03:01.9]} 1... d6 {[%clk 0:02:56.1]} 2. Nf3 {[%clk 0:03:00.3]}
2... g6 {[%clk 0:02:56.4]} 3. Bg5 {[%clk 0:03:01.2]} 3... Bg7 {[%clk 0:02:53.7]}
4. Nbd2 {[%clk 0:03:02.4]} 4... Nd7 {[%clk 0:02:49]} 5. e4 {[%clk 0:03:03.5]}
5... h6 {[%clk 0:02:47.1]} 6. Bh4 {[%clk 0:03:04.6]} 6... g5 {[%clk 0:02:44.3]}
7. Bg3 {[%clk 0:03:06]} 7... Ngf6 {[%clk 0:02:45.2]} 8. c3 {[%clk 0:03:05.9]}
8... Nh5 {[%clk 0:02:42.5]} 9. Bd3 {[%clk 0:03:05.8]} 9... e6 {[%clk 0:02:37.9]}
10. Qe2 {[%clk 0:03:06]} 10... a6 {[%clk 0:02:35]} 11. O-O-O {[%clk 0:03:06.6]}
11... b5 {[%clk 0:02:31.1]} 12. e5 {[%clk 0:03:08.1]} 12... d5 {[%clk
0:02:26.6]} 13. h4 {[%clk 0:02:57.7]} 13... Nxg3 {[%clk 0:02:23.6]} 14. fxg3
{[%clk 0:02:59.6]} 14... g4 {[%clk 0:02:24.8]} 15. Nh2 {[%clk 0:03:01.2]} 15...
h5 {[%clk 0:02:25.6]} 16. Rhf1 {[%clk 0:02:58.1]} 16... Qe7 {[%clk 0:02:26.4]}
17. Rf2 {[%clk 0:02:55.5]} 17... Kd8 {[%clk 0:01:46]} 18. Nhf1 {[%clk
0:02:56.6]} 18... c5 {[%clk 0:01:40.8]} 19. Ne3 {[%clk 0:02:57.9]} 19... Bb7
{[%clk 0:01:30.4]} 20. Rdf1 {[%clk 0:02:57.7]} 20... Rf8 {[%clk 0:01:31.6]} 21.
Kb1 {[%clk 0:02:52.6]} 21... Rc8 {[%clk 0:01:28.7]} 22. Ka1 {[%clk 0:02:37.8]}
22... Bh6 {[%clk 0:01:25.9]} 23. Nc2 {[%clk 0:02:20.7]} 23... c4 {[%clk
0:01:17.3]} 24. Bh7 {[%clk 0:02:21.8]} 24... f5 {[%clk 0:01:08.2]} 25. Bxf5
{[%clk 0:02:18.7]} 25... exf5 {[%clk 0:01:03.7]} 26. Rxf5 {[%clk 0:02:20.6]}
26... Kc7 {[%clk 0:01:01.8]} 27. Ne3 {[%clk 0:02:15.7]} 27... Qe6 {[%clk
0:00:49.1]} 28. Rxh5 {[%clk 0:02:13.3]} 28... Rxf1+ {[%clk 0:00:45.4]} 29. Ndxf1
{[%clk 0:02:13.7]} 29... Rf8 {[%clk 0:00:45.5]} 30. Qc2 {[%clk 0:01:53.7]} 30...
Rf7 {[%clk 0:00:16.2]} 31. Nf5 {[%clk 0:01:54.3]} 31... Bf8 {[%clk 0:00:10.9]}
32. N1e3 {[%clk 0:01:55.9]} 32... Bc6 {[%clk 0:00:10]} 33. Rg5 {[%clk
0:01:56.9]} 33... b4 {[%clk 0:00:08.2]} 34. Rxg4 {[%clk 0:01:58.2]} 34... bxc3
{[%clk 0:00:06.4]} 35. Qxc3 {[%clk 0:02:00.1]} 35... Rxf5 {[%clk 0:00:06.1]} 36.
Nxf5 {[%clk 0:01:54.2]} 36... Qxf5 {[%clk 0:00:07.2]} 37. Rf4 {[%clk 0:01:56.1]}
37... Qd3 {[%clk 0:00:06.2]} 38. Qxd3 {[%clk 0:01:53.9]} 38... cxd3 {[%clk
0:00:07.5]} 39. Kb1 {[%clk 0:01:55.8]} 39... Bh6 {[%clk 0:00:05.3]} 40. Rf7
{[%clk 0:01:52.7]} 40... d2 {[%clk 0:00:05.9]} 41. Kc2 {[%clk 0:01:53]} 41...
Bb5 {[%clk 0:00:03.2]} 42. Kd1 {[%clk 0:01:48.3]} 42... Kd8 {[%clk 0:00:01.9]}
43. g4 {[%clk 0:01:48.9]} 43... Be3 {[%clk 0:00:02.6]} 44. g5 {[%clk 0:01:47]}
44... Bd3 {[%clk 0:00:03.5]} 45. Rf3 {[%clk 0:01:45.1]} 1-0